bitfinex-derivatives/quotes_BNBF0:USTF0_20250128
["timestamp","ask_amount","ask_price","bid_price","bid_amount"]
[1738072668639,1.16005387,672.84,671.81,1.04687993]
[1738072668839,1.16005387,672.83,671.81,1.04687993]
[1738072669036,1.16005387,672.82,671.81,1.04687993]
[1738072669236,1.16005387,672.81,671.81,1.04687993]
[1738072669432,1.16005387,672.8,671.81,1.04687993]
[1738072669737,1.16005387,672.79,671.81,1.04687993]
[1738072669937,2.03475474,672.78,671.81,1.04687993]
[1738072670137,1.16005387,672.77,671.81,1.04687993]
[1738072670337,1.16005387,672.76,671.81,1.04687993]
[1738072670537,1.16005387,672.75,671.81,1.04687993]
[1738072670738,1.16005387,672.74,671.81,1.04687993]
[1738072671039,2.03475474,672.73,671.81,1.04687993]
[1738072671242,1.16005387,672.72,671.81,1.04687993]
[1738072671442,2.03475474,672.71,671.81,1.04687993]
[1738072671742,1.16005387,672.7,671.73,1.04687993]
[1738072671940,1.16005387,672.69,671.73,1.04687993]
[1738072672238,1.16005387,672.68,671.73,1.04687993]
[1738072672440,1.16005387,672.67,671.73,1.04687993]
[1738072672741,0.87470087,672.68,671.73,1.04687993]
[1738072672742,1.16005387,672.66,671.73,1.04687993]
[1738072672935,2.03475474,672.65,671.73,1.04687993]
[1738072673140,1.16005387,672.64,671.73,1.04687993]
[1738072673340,1.16005387,672.63,671.73,1.04687993]
[1738072673536,1.16005387,672.62,671.73,1.04687993]
[1738072673741,1.16005387,672.61,671.73,1.04687993]
[1738072673938,1.16012712,672.6,671.73,1.04687993]
[1738072674139,1.16012712,672.59,671.73,1.04687993]
[1738072674339,1.16012712,672.58,671.73,1.04687993]
[1738072674540,2.03482799,672.57,671.73,1.04687993]
[1738072674741,1.16012712,672.56,671.73,1.04687993]
[1738072675041,2.03482799,672.55,671.73,1.04687993]
[1738072675238,1.16012712,672.54,671.65,1.04687993]
[1738072675442,1.16012712,672.53,671.65,1.04687993]
[1738072675637,1.16012712,672.52,671.65,1.04687993]
[1738072675844,1.16012712,672.51,671.65,1.04687993]
[1738072676042,1.16041128,672.5,671.65,1.04687993]
[1738072676236,0.87470087,672.52,671.65,1.04687993]
[1738072676237,1.16041128,672.49,671.65,1.04687993]
[1738072676441,1.16041128,672.48,671.65,1.04687993]
[1738072676640,1.16041128,672.47,671.65,1.04687993]
[1738072676836,2.03511215,672.46,671.65,1.04687993]
[1738072677041,1.16041128,672.45,671.65,1.04687993]
[1738072677238,1.16041128,672.44,671.65,1.04687993]
[1738072677441,1.16041128,672.43,671.65,1.04687993]
[1738072677645,1.16041128,672.42,671.72,1.04687993]
[1738072677842,1.16041128,672.41,671.72,1.04687993]
[1738072678044,1.16041128,672.4,671.72,1.04687993]
[1738072678244,0.87470087,672.41,671.72,1.04687993]
[1738072678245,1.16041128,672.39,671.72,1.04687993]
[1738072678446,1.16041128,672.38,671.72,1.04687993]
[1738072678945,0.87470087,672.37,671.72,1.04687993]
[1738072679139,1.16134055,672.36,671.72,1.04687993]
[1738072679343,1.16134055,672.35,671.72,1.04687993]
[1738072679645,2.03604142,672.34,671.72,1.04687993]
[1738072679840,1.16134055,672.33,671.72,1.04687993]
[1738072680039,2.03604142,672.32,671.72,1.04687993]
[1738072680242,0.87470087,672.32,671.72,1.04687993]
[1738072680440,1.16166703,672.31,671.72,1.04687993]
[1738072680640,0.87470087,672.31,671.72,1.04687993]
[1738072680942,0.87470087,672.31,671.7,1.04687993]
[1738072681143,0.87470087,672.3,671.7,1.04687993]
[1738072681646,0.87470087,672.29,671.7,1.04687993]
[1738072682450,0.87470087,672.28,671.7,1.04687993]
[1738072683556,1.55319584,672.83,671.7,1.04687993]
[1738072683751,2.04019481,672.82,671.7,1.04687993]
[1738072683947,1.16316712,672.81,671.7,1.04687993]
[1738072684147,1.16316712,672.8,671.7,1.04687993]
[1738072684348,1.16316712,672.79,671.7,1.04687993]
[1738072684550,1.16316712,672.78,671.7,1.04687993]
[1738072684751,1.16316712,672.77,671.56,0.29781404]
[1738072685052,1.16316712,672.76,671.56,0.29781404]
[1738072685252,1.16316712,672.75,671.56,0.29781404]
[1738072685451,2.04019481,672.74,671.56,0.29781404]
[1738072685652,1.16316712,672.73,671.56,0.29781404]
[1738072685846,1.16316712,672.72,671.56,0.29781404]
[1738072686048,1.16316712,672.71,671.56,0.29781404]
[1738072686251,2.04019481,672.7,671.56,0.29781404]
[1738072686551,1.16316712,672.69,671.56,0.29781404]
[1738072686750,1.16316712,672.68,671.56,0.29781404]
[1738072686957,1.16316712,672.67,671.56,0.29781404]
[1738072687249,1.16316712,672.66,671.56,0.29781404]
[1738072687456,1.16316712,672.65,671.56,0.29781404]
[1738072687655,1.16316712,672.64,671.56,0.29781404]
[1738072687957,1.16316712,672.63,671.56,0.29781404]
[1738072688259,1.16316712,672.62,671.56,0.29781404]
[1738072688452,1.16316712,672.61,671.56,0.29781404]
[1738072688657,0.87702769,672.63,671.56,0.29781404]
[1738072688658,1.16316712,672.6,671.56,0.29781404]
[1738072688851,1.55319584,672.83,671.56,0.29781404]
[1738072688852,1.16316712,672.59,671.56,0.29781404]
[1738072689056,1.16316712,672.58,671.56,0.29781404]
[1738072689252,1.16316712,672.57,671.56,0.29781404]
[1738072689456,1.16316712,672.56,671.56,0.29781404]
[1738072689654,1.16316712,672.55,671.56,0.29781404]
[1738072689957,1.16316712,672.54,671.56,0.29781404]
[1738072690257,1.16316712,672.53,671.56,0.29781404]
[1738072690458,1.16316712,672.52,671.56,0.29781404]
[1738072690658,1.16316712,672.51,671.56,0.29781404]
[1738072690855,1.16316712,672.5,671.56,0.29781404]
[1738072691054,1.16316712,672.49,671.56,0.29781404]
[1738072691361,1.16316712,672.48,671.56,0.29781404]
[1738072691559,1.55304566,672.91,671.56,0.29781404]
[1738072691560,2.04019481,672.47,671.62,1.04687993]
[1738072691761,1.16316712,672.46,671.62,1.04687993]
[1738072691954,1.16316712,672.45,671.62,1.04687993]
[1738072692254,2.04019481,672.44,671.62,1.04687993]
[1738072692461,1.16316712,672.43,671.62,1.04687993]
[1738072692654,1.16316712,672.42,671.62,1.04687993]
[1738072692857,2.04019481,672.41,671.62,1.04687993]
[1738072693057,1.16316712,672.4,671.62,1.04687993]
[1738072693260,1.16316712,672.39,671.63,0.297783]
[1738072693454,1.16316712,672.38,671.63,0.297783]
[1738072693659,2.04019481,672.37,671.63,0.297783]
[1738072693859,2.04019481,672.36,671.63,0.297783]
[1738072694057,0.87702769,672.36,671.63,0.297783]
[1738072694861,0.87702769,672.35,671.83,1.04687993]
[1738072695262,1.04405922,672.94,671.83,1.04687993]
[1738072695458,1.16556743,672.93,671.83,1.04687993]
[1738072695661,1.16556743,672.92,671.83,1.04687993]
[1738072695864,1.16556743,672.91,671.83,1.04687993]
[1738072696162,1.16556743,672.9,671.83,1.04687993]
[1738072696364,1.16556743,672.89,671.83,1.04687993]
[1738072696564,2.04436673,672.88,671.83,1.04687993]
[1738072696756,1.16556743,672.87,671.83,1.04687993]
[1738072696961,1.16556743,672.86,671.83,1.04687993]
[1738072697158,1.16556743,672.85,671.83,1.04687993]
[1738072697465,1.16556743,672.85,671.63,0.297783]
[1738072697466,2.04436673,672.84,671.84,1.04687993]
[1738072697660,1.16556743,672.83,671.84,1.04687993]
[1738072697964,2.04436673,672.82,671.84,1.04687993]
[1738072698157,1.16556743,672.81,671.84,1.04687993]
[1738072698361,1.16556743,672.8,671.84,1.04687993]
[1738072698559,1.16556743,672.79,671.84,1.04687993]
[1738072698763,1.16556743,672.78,671.84,1.04687993]
[1738072698964,2.04436673,672.77,671.84,1.04687993]
[1738072699159,1.16556743,672.76,671.84,1.04687993]
[1738072699361,1.16556743,672.75,671.84,1.04687993]
[1738072699564,1.16556743,672.74,671.84,1.04687993]
[1738072699864,1.16556743,672.73,671.84,1.04687993]
[1738072700064,1.16556743,672.72,671.84,1.04687993]
[1738072700365,1.16556743,672.71,671.81,1.04687993]
[1738072700560,1.16556743,672.7,671.81,1.04687993]
[1738072700763,1.16556743,672.69,671.81,1.04687993]
[1738072700959,1.16556743,672.68,671.81,1.04687993]
[1738072701159,1.16556743,672.67,671.81,1.04687993]
[1738072701361,1.16556743,672.66,671.81,1.04687993]
[1738072701564,1.16556743,672.65,671.81,1.04687993]
[1738072701864,1.16556743,672.64,671.81,1.04687993]
[1738072702062,1.16556743,672.63,671.81,1.04687993]
[1738072702258,2.04436673,672.62,671.81,1.04687993]
[1738072702467,1.16556743,672.61,671.81,1.04687993]
[1738072702667,1.16556743,672.6,671.81,1.04687993]
[1738072702867,1.16556743,672.59,671.81,1.04687993]
[1738072703067,1.16556743,672.58,671.81,1.04687993]
[1738072703265,1.16556743,672.57,671.81,1.04687993]
[1738072703462,2.04436673,672.56,671.8,1.04687993]
[1738072703662,1.16556743,672.55,671.8,1.04687993]
[1738072703865,1.16556743,672.54,671.8,1.04687993]
[1738072704064,1.16556743,672.53,671.8,1.04687993]
[1738072704260,1.16556743,672.52,671.8,1.04687993]
[1738072704464,1.16556743,672.51,671.8,1.04687993]
[1738072704668,1.16534371,672.5,671.8,1.04687993]
[1738072704869,0.8787993,672.54,671.8,1.04687993]
[1738072705066,1.16535708,672.53,671.8,1.04687993]
[1738072705266,0.8787993,672.53,671.8,1.04687993]
[1738072705969,1.04405922,673.04,671.8,1.04687993]
[1738072706169,1.16520002,673.03,671.8,1.04687993]
[1738072706363,1.16520002,673.02,671.8,1.04687993]
[1738072706567,1.16520002,673.01,671.8,1.04687993]
[1738072706790,1.16520002,673.0,671.8,1.04687993]
[1738072706966,1.16520002,672.99,671.8,1.04687993]
[1738072707171,2.04341318,672.98,671.8,1.04687993]
[1738072707367,1.16520002,672.97,671.8,1.04687993]
[1738072707571,1.16520002,672.96,671.84,1.04687993]
[1738072707770,2.04341318,672.95,671.84,1.04687993]
[1738072707970,1.16520002,672.94,671.84,1.04687993]
[1738072708170,2.04341318,672.93,671.84,1.04687993]
[1738072708365,1.16520002,672.92,671.84,1.04687993]
[1738072708568,1.16520002,672.91,671.84,1.04687993]
[1738072708770,1.16520002,672.9,671.84,1.04687993]
[1738072708971,1.16520002,672.89,671.84,1.04687993]
[1738072709170,2.04341318,672.88,671.84,1.04687993]
[1738072709370,1.16520002,672.87,671.84,1.04687993]
[1738072709574,1.16520002,672.86,671.84,1.04687993]
[1738072709767,1.16520002,672.85,671.84,1.04687993]
[1738072709967,2.04341318,672.84,671.84,1.04687993]
[1738072710275,1.16520002,672.83,671.84,1.04687993]
[1738072710473,1.16520002,672.82,671.84,1.04687993]
[1738072710675,1.16520002,672.81,671.88,1.04687993]
[1738072710975,2.04341318,672.8,671.88,1.04687993]
[1738072711175,1.16520002,672.79,671.88,1.04687993]
[1738072711374,0.87821316,672.8,671.88,1.04687993]
[1738072711375,1.16520002,672.78,671.88,1.04687993]
[1738072711675,2.04341318,672.77,671.88,1.04687993]
[1738072711871,2.04341318,672.76,671.88,1.04687993]
[1738072712077,1.16520002,672.75,671.88,1.04687993]
[1738072712276,1.16520002,672.74,671.88,1.04687993]
[1738072712576,1.16520002,672.73,671.88,1.04687993]
[1738072712876,1.16520002,672.72,671.88,1.04687993]
[1738072713075,1.16520002,672.71,671.88,1.04687993]
[1738072713270,1.16520002,672.7,671.88,1.04687993]
[1738072713475,0.87821316,672.71,671.81,1.04687993]
[1738072713476,1.16520002,672.69,671.81,1.04687993]
[1738072713670,1.16520002,672.68,671.82,0.29769878]
[1738072713870,2.04341318,672.67,671.82,0.29769878]
[1738072714077,1.16520002,672.66,671.82,0.29769878]
[1738072714275,1.1634236,672.65,671.82,0.29769878]
[1738072714577,1.1634236,672.64,671.82,0.29769878]
[1738072714777,1.1634236,672.63,671.82,0.29769878]
[1738072715079,2.04163676,672.62,671.82,0.29769878]
[1738072715376,2.04163676,672.61,671.82,0.29769878]
[1738072715570,1.16323676,672.6,671.82,0.29769878]
[1738072715773,0.87821316,672.61,671.82,0.29769878]
[1738072715976,2.04145395,672.6,671.82,0.29769878]
[1738072716172,0.87821316,672.6,671.82,0.29769878]
[1738072716478,1.5524279,673.21,671.82,0.29769878]
[1738072716677,1.73343662,673.2,671.82,0.29769878]
[1738072716878,2.61035189,673.19,671.82,0.29769878]
[1738072717079,1.16313024,673.18,671.82,0.29769878]
[1738072717280,1.16313024,673.17,671.82,0.29769878]
[1738072717579,1.16313024,673.16,671.82,0.29769878]
[1738072717776,1.16313024,673.15,671.82,0.29769878]
[1738072717978,1.16313024,673.14,671.82,0.29769878]
[1738072718176,1.16313024,673.13,671.82,0.29769878]
[1738072718376,1.16313024,673.12,671.82,0.29769878]
[1738072718574,1.16313024,673.11,671.82,0.29769878]
[1738072718775,1.16313024,673.1,671.82,0.29769878]
[1738072718974,1.16313024,673.09,671.82,0.29769878]
[1738072719174,1.16313024,673.08,671.82,0.29769878]
[1738072719374,2.0400411,673.07,671.82,0.29769878]
[1738072719579,1.16313024,673.06,671.82,0.29769878]
[1738072719777,1.16313024,673.05,671.82,0.29769878]
[1738072719978,2.0400411,673.04,671.82,0.29769878]
[1738072720180,1.16313024,673.03,671.82,0.29769878]
[1738072720479,1.16313024,673.02,671.82,0.29769878]
[1738072720781,2.0400411,673.01,671.82,0.29769878]
[1738072720980,1.16313024,673.0,671.82,0.29769878]
[1738072721281,1.16313024,672.99,671.82,0.29769878]
[1738072721482,1.16313024,672.98,671.82,0.29769878]
[1738072721681,1.16313024,672.97,671.82,0.29769878]
[1738072721883,1.16313024,672.96,671.82,0.29769878]
[1738072722076,1.16313024,672.95,671.82,0.29769878]
[1738072722276,1.16313024,672.94,671.82,0.29769878]
[1738072722475,1.16313024,672.93,671.82,0.29769878]
[1738072722779,1.16313024,672.92,671.82,0.29769878]
[1738072722979,1.16313024,672.91,671.82,0.29769878]
[1738072723179,2.0400411,672.9,671.82,0.29769878]
[1738072723379,1.16313024,672.89,671.82,0.29769878]
[1738072723575,1.16313024,672.88,671.82,0.29769878]
[1738072723780,1.16313024,672.87,671.82,0.29769878]
[1738072723980,1.16313024,672.86,671.82,0.29769878]
[1738072724177,1.16313024,672.85,671.82,0.29769878]
[1738072724375,1.16313024,672.84,671.82,0.29769878]
[1738072724580,1.16313024,672.83,671.82,0.29769878]
[1738072724780,1.16313024,672.82,671.82,0.29769878]
[1738072724979,1.16313024,672.81,671.82,0.29769878]
[1738072725284,1.16313024,672.8,671.82,0.29769878]
[1738072725483,1.16313024,672.79,671.82,0.29769878]
[1738072725679,1.16313024,672.78,671.82,0.29769878]
[1738072725886,2.0400411,672.77,671.82,0.29769878]
[1738072726088,1.16313024,672.76,671.82,0.29769878]
[1738072726389,1.16198328,672.75,671.92,1.04687993]
[1738072726585,0.87691086,672.76,671.92,1.04687993]
[1738072726783,2.03886547,672.75,671.92,1.04687993]
[1738072726983,0.87691086,672.75,671.92,1.04687993]
[1738072727486,0.87691086,672.74,671.92,1.04687993]
[1738072728084,0.29709294,673.19,671.92,1.04687993]
[1738072728279,1.43482703,673.18,671.92,1.04687993]
[1738072728481,1.43482703,673.17,671.92,1.04687993]
[1738072728677,1.43482703,673.16,671.92,1.04687993]
[1738072728883,1.43482703,673.15,671.92,1.04687993]
[1738072729082,2.03737637,673.14,671.99,1.04687993]
[1738072729378,1.16165629,673.13,671.99,1.04687993]
[1738072729582,1.16165629,673.12,671.99,1.04687993]
[1738072729784,2.03737637,673.11,671.99,1.04687993]
[1738072729979,1.16165629,673.1,671.99,1.04687993]
[1738072730179,1.16165629,673.09,671.99,1.04687993]
[1738072730482,2.03737637,673.08,671.99,1.04687993]
[1738072730778,1.16165629,673.07,671.99,1.04687993]
[1738072730981,0.87572008,673.08,671.99,1.04687993]
[1738072730982,2.03737637,673.06,671.99,1.04687993]
[1738072731184,1.16165629,673.05,671.99,1.04687993]
[1738072731386,1.16165629,673.04,671.99,1.04687993]
[1738072731685,2.03737637,673.03,671.99,1.04687993]
[1738072731885,1.16165629,673.02,671.99,1.04687993]
[1738072732086,1.16165629,673.01,672.01,1.04687993]
[1738072732279,1.16165629,673.0,672.01,1.04687993]
[1738072732486,1.16165629,672.99,672.01,1.04687993]
[1738072732686,1.16165629,672.98,672.01,1.04687993]
[1738072732987,1.16165629,672.97,672.01,1.04687993]
[1738072733188,1.16165629,672.96,672.01,1.04687993]
[1738072733381,1.16165629,672.95,672.01,1.04687993]
[1738072733587,1.16165629,672.94,672.01,1.04687993]
[1738072733784,1.16165629,672.93,672.01,1.04687993]
[1738072733988,0.87572008,672.95,672.01,1.04687993]
[1738072733989,2.03737637,672.92,672.01,1.04687993]
[1738072734287,1.16165629,672.91,672.01,1.04687993]
[1738072734488,1.16165629,672.9,672.01,1.04687993]
[1738072734688,2.03737637,672.89,672.01,1.04687993]
[1738072734888,1.16165629,672.88,672.01,1.04687993]
[1738072735085,1.16165629,672.87,672.01,1.04687993]
[1738072735288,1.16165629,672.86,672.04,1.04687993]
[1738072735591,1.16165629,672.85,672.04,1.04687993]
[1738072735782,1.16165629,672.84,672.04,1.04687993]
[1738072735987,1.16165629,672.83,672.04,1.04687993]
[1738072736188,0.87572008,672.83,672.04,1.04687993]
[1738072736785,1.16052103,672.82,672.04,1.04687993]
[1738072736982,1.16052103,672.81,672.04,1.04687993]
[1738072737283,0.87572008,672.82,672.04,1.04687993]
[1738072737488,0.87572008,672.8,672.04,1.04687993]
[1738072737988,0.87572008,672.79,672.04,1.04687993]
[1738072738289,0.87572008,672.79,671.99,1.04687993]
[1738072738789,0.87572008,672.78,671.99,1.04687993]
[1738072739182,0.87572008,672.77,671.99,1.04687993]
[1738072739791,1.16021401,672.76,671.99,1.04687993]
[1738072739985,0.87572008,672.76,671.99,1.04687993]
[1738072740890,1.16024132,672.75,671.99,1.04687993]
[1738072741093,1.16019923,672.74,671.99,1.04687993]
[1738072741292,1.16019923,672.73,671.9,1.04687993]
[1738072741486,1.16019923,672.72,671.9,1.04687993]
[1738072742091,0.87572008,672.71,671.9,1.04687993]
[1738072742289,1.16019923,672.7,671.9,1.04687993]
[1738072742686,0.87572008,672.69,671.9,1.04687993]
[1738072742890,1.16019923,672.68,671.9,1.04687993]
[1738072743393,2.03591931,672.68,671.9,1.04687993]
[1738072743592,1.16019923,672.67,671.9,1.04687993]
[1738072743891,0.87572008,672.66,671.9,1.04687993]
[1738072744092,1.16019923,672.65,671.9,1.04687993]
[1738072744292,2.03591931,672.65,671.9,1.04687993]
[1738072744492,0.87572008,672.65,671.9,1.04687993]
[1738072744693,0.87572008,672.65,671.82,0.29769878]
[1738072744694,0.87572008,672.65,671.83,1.04687993]
[1738072744889,2.03662301,672.64,671.83,1.04687993]
[1738072745090,0.87572008,672.64,671.83,1.04687993]
[1738072745792,0.87572008,672.63,671.83,1.04687993]
[1738072746295,0.87572008,672.62,671.83,1.04687993]
[1738072747095,1.55260105,673.1,671.83,1.04687993]
[1738072747300,1.16159619,673.09,671.85,1.04687993]
[1738072747495,1.55260105,673.1,671.85,1.04687993]
[1738072747496,1.16159619,673.08,671.85,1.04687993]
[1738072747698,1.16159619,673.07,671.85,1.04687993]
[1738072747997,2.03739244,673.06,671.85,1.04687993]
[1738072748190,1.16159619,673.05,671.85,1.04687993]
[1738072748390,1.16159619,673.04,671.85,1.04687993]
[1738072748590,1.16159619,673.03,671.85,1.04687993]
[1738072748796,1.16159619,673.02,671.85,1.04687993]
[1738072748995,1.16159619,673.01,671.85,1.04687993]
[1738072749195,1.16159619,673.0,671.85,1.04687993]
[1738072749396,1.16159619,672.99,671.85,1.04687993]
[1738072749593,1.16159619,672.98,671.85,1.04687993]
[1738072749890,1.16159619,672.97,671.94,1.04687993]
[1738072750093,1.16159619,672.96,671.94,1.04687993]
[1738072750291,1.16159619,672.95,671.94,1.04687993]
[1738072750494,1.16159619,672.94,671.94,1.04687993]
[1738072750690,1.16159619,672.93,671.94,1.04687993]
[1738072750896,2.03739244,672.92,671.94,1.04687993]
[1738072751096,1.16159619,672.91,671.94,1.04687993]
[1738072751293,1.16159619,672.9,671.94,1.04687993]
[1738072751495,1.16159619,672.89,671.94,1.04687993]
[1738072751794,2.03739244,672.88,671.94,1.04687993]
[1738072751990,1.16159619,672.87,671.94,1.04687993]
[1738072752296,2.03739244,672.86,671.94,1.04687993]
[1738072752495,2.03739244,672.85,671.94,1.04687993]
[1738072752796,1.16159619,672.84,671.94,1.04687993]
[1738072752996,1.16159619,672.84,671.82,0.29769878]
[1738072752997,1.16159619,672.83,671.93,1.04687993]
[1738072753296,1.16159619,672.82,671.93,1.04687993]
[1738072753496,1.16159619,672.81,671.93,1.04687993]
[1738072753696,1.16159619,672.8,671.93,1.04687993]
[1738072753995,2.03739244,672.79,671.93,1.04687993]
[1738072754196,1.16159619,672.78,671.93,1.04687993]
[1738072754391,2.03739244,672.77,671.93,1.04687993]
[1738072754597,1.16159619,672.76,671.93,1.04687993]
[1738072754790,1.16159619,672.75,671.93,1.04687993]
[1738072754994,1.16159619,672.74,671.93,1.04687993]
[1738072755191,1.16159619,672.73,671.93,1.04687993]
[1738072755390,1.16159619,672.72,671.93,1.04687993]
[1738072755591,0.87579625,672.74,671.93,1.04687993]
[1738072755592,1.16159619,672.71,671.93,1.04687993]
[1738072755793,1.16159619,672.7,671.93,1.04687993]
[1738072755994,1.16159619,672.69,671.89,1.04687993]
[1738072756196,1.16159619,672.68,671.89,1.04687993]
[1738072756398,1.16159619,672.67,671.89,1.04687993]
[1738072756593,1.16159619,672.66,671.89,1.04687993]
[1738072756892,1.16159619,672.65,671.89,1.04687993]
[1738072757095,1.16159619,672.64,671.89,1.04687993]
[1738072757295,1.16159619,672.63,671.89,1.04687993]
[1738072757496,1.16159619,672.62,671.89,1.04687993]
[1738072757697,1.16159619,672.61,671.89,1.04687993]
[1738072757892,2.03739244,672.6,671.89,1.04687993]
[1738072758094,1.16159619,672.59,671.89,1.04687993]
[1738072758299,1.16159619,672.58,671.89,1.04687993]
[1738072758599,1.16159619,672.57,671.89,1.04687993]
[1738072758800,1.16159619,672.56,671.89,1.04687993]
[1738072758995,1.16159619,672.55,671.53,1.04687993]
[1738072759200,1.16159619,672.54,671.53,1.04687993]
[1738072759499,1.16159619,672.53,671.53,1.04687993]
[1738072759696,2.03739244,672.52,671.53,1.04687993]
[1738072759899,1.16159619,672.51,671.53,1.04687993]
[1738072760099,1.16159619,672.5,671.53,1.04687993]
[1738072760400,1.16159619,672.49,671.53,1.04687993]
[1738072760602,1.16159619,672.48,671.53,1.04687993]
[1738072760802,2.03739244,672.47,671.53,1.04687993]
[1738072761001,0.87579625,672.47,671.53,1.04687993]
[1738072761194,0.87579625,672.46,671.53,1.04687993]
[1738072761400,0.87579625,672.46,670.65,2.13737987]
[1738072761401,0.87579625,672.46,671.49,1.04687993]
[1738072761798,0.87579625,672.99,671.49,1.04687993]
[1738072762000,1.16242234,672.98,671.49,1.04687993]
[1738072762200,2.31149522,672.97,671.49,1.04687993]
[1738072762404,1.43569897,672.96,671.49,1.04687993]
[1738072762603,2.31149522,672.95,671.49,1.04687993]
[1738072762804,1.43569897,672.94,671.49,1.04687993]
[1738072763004,1.43569897,672.93,671.49,1.04687993]
[1738072763203,1.43569897,672.92,671.49,1.04687993]
[1738072763404,1.43569897,672.91,671.49,1.04687993]
[1738072763601,2.31149522,672.9,671.49,1.04687993]
[1738072763807,1.43569897,672.89,671.49,1.04687993]
[1738072764003,1.43569897,672.88,671.49,1.04687993]
[1738072764201,1.43569897,672.87,671.49,1.04687993]
[1738072764397,2.31149522,672.86,671.49,1.04687993]
[1738072764599,1.43569897,672.85,671.49,1.04687993]
[1738072764805,0.87579625,672.86,671.78,1.04687993]
[1738072764806,1.43569897,672.84,671.78,1.04687993]
[1738072765104,1.43569897,672.83,671.78,1.04687993]
[1738072765302,1.43569897,672.82,671.78,1.04687993]
[1738072765498,1.55303411,673.0,671.78,1.04687993]
[1738072765499,0.87633019,672.81,671.78,1.04687993]
[1738072765702,0.27327562,672.8,671.78,1.04687993]
[1738072766003,1.16227876,672.79,671.78,1.04687993]
[1738072766203,1.43555438,672.78,671.78,1.04687993]
[1738072766399,1.43555438,672.77,671.78,1.04687993]
[1738072766604,1.43555438,672.76,671.78,1.04687993]
[1738072766806,1.16227876,672.75,671.78,1.04687993]
[1738072767101,1.16227876,672.74,671.78,1.04687993]
[1738072767305,1.16227876,672.73,671.78,1.04687993]
[1738072767506,1.16227876,672.72,671.78,1.04687993]
[1738072767806,1.16227876,672.71,671.78,1.04687993]
[1738072768007,1.16227876,672.7,671.78,1.04687993]
[1738072768206,1.16227876,672.69,671.78,1.04687993]
[1738072768408,1.16227876,672.68,671.78,1.04687993]
[1738072768606,1.16227876,672.67,671.78,1.04687993]
[1738072768807,1.16227876,672.66,671.78,1.04687993]
[1738072769005,1.16227876,672.65,671.78,1.04687993]
[1738072769201,1.16227876,672.64,671.78,1.04687993]
[1738072769405,1.16227876,672.63,671.78,1.04687993]
[1738072769601,0.87633019,672.65,671.78,1.04687993]
[1738072769602,1.16227876,672.62,671.78,1.04687993]
[1738072769804,1.16227876,672.61,671.78,1.04687993]
[1738072770003,1.16227876,672.6,671.78,1.04687993]
[1738072770203,1.16227876,672.59,671.78,1.04687993]
[1738072770404,1.16227876,672.58,671.78,1.04687993]
[1738072770709,1.16227876,672.57,671.78,1.04687993]
[1738072770910,1.16227876,672.56,671.78,1.04687993]
[1738072771108,1.16227876,672.55,671.78,1.04687993]
[1738072771312,1.16227876,672.54,671.78,1.04687993]
[1738072771509,2.03860895,672.53,671.78,1.04687993]
[1738072771708,1.16227876,672.52,671.78,1.04687993]
[1738072772014,1.16227876,672.51,671.78,1.04687993]
[1738072772208,1.16227876,672.5,671.78,1.04687993]
[1738072772410,1.16227876,672.49,671.78,1.04687993]
[1738072772608,1.16227876,672.48,671.78,1.04687993]
[1738072772812,1.16227876,672.47,671.78,1.04687993]
[1738072773011,1.16227876,672.46,671.78,1.04687993]
[1738072773214,1.16227876,672.45,671.78,1.04687993]
[1738072773409,1.16227876,672.44,671.78,1.04687993]
[1738072773614,0.87633019,672.43,671.78,1.04687993]
[1738072774316,1.55303411,673.0,671.78,1.04687993]
[1738072774518,1.4344656,672.99,671.78,1.04687993]
[1738072774810,2.30993693,672.98,671.78,1.04687993]
[1738072775016,1.43443535,672.97,671.78,1.04687993]
[1738072775210,1.43443535,672.96,671.78,1.04687993]
[1738072775413,2.30990668,672.95,671.78,1.04687993]
[1738072775609,2.30990668,672.94,671.78,1.04687993]
[1738072775810,1.43443535,672.93,671.66,1.04687993]
[1738072776011,1.43443535,672.92,671.66,1.04687993]
[1738072776217,1.43443535,672.91,671.66,1.04687993]
[1738072776413,1.43443535,672.9,671.66,1.04687993]
[1738072776612,1.43443535,672.89,671.66,1.04687993]
[1738072776812,2.30990668,672.88,671.66,1.04687993]
[1738072777017,1.43443535,672.87,671.66,1.04687993]
[1738072777216,1.43443535,672.86,671.66,1.04687993]
[1738072777418,2.30990668,672.85,671.66,1.04687993]
[1738072777718,2.03660303,672.84,671.66,1.04687993]
[1738072777918,1.1611317,672.83,671.66,1.04687993]
[1738072778115,1.1611317,672.82,671.66,1.04687993]
[1738072778318,1.55277425,672.92,671.66,1.04687993]
[1738072778319,2.03660303,672.81,671.66,1.04687993]
[1738072778520,2.03660303,672.81,671.0,2.13737987]
[1738072778521,1.1611317,672.8,671.67,1.04687993]
[1738072778819,2.03660303,672.79,671.67,1.04687993]
[1738072779019,1.1611317,672.78,671.67,1.04687993]
[1738072779218,1.1606923,672.77,671.67,1.04687993]
[1738072779416,1.1606923,672.76,671.67,1.04687993]
[1738072779616,1.1606923,672.75,671.67,1.04687993]
[1738072779813,2.03616363,672.74,671.67,1.04687993]
[1738072780014,1.1606923,672.73,671.67,1.04687993]
[1738072780212,1.1606923,672.72,671.67,1.04687993]
[1738072780418,1.1606923,672.71,671.67,1.04687993]
[1738072780617,1.1606923,672.7,671.67,1.04687993]